bitfinex/quotes_BTCUSD_20220731
["timestamp","ask_amount","ask_price","bid_price","bid_amount"]
[1659296519845,0.15,23915.0,23914.0,0.00251702]
[1659296520714,0.450783,23915.0,23914.0,0.00251702]
[1659296520925,0.15,23915.0,23914.0,0.00251702]
[1659296521139,0.450783,23915.0,23914.0,0.00251702]
[1659296521363,0.15,23915.0,23914.0,0.00251702]
[1659296522090,0.228,23915.0,23914.0,0.00251702]
[1659296523440,0.15,23915.0,23914.0,0.00251702]
[1659296523669,0.450783,23915.0,23914.0,0.00251702]
[1659296523878,0.228,23915.0,23914.0,0.00251702]
[1659296525285,0.15,23915.0,23914.0,0.00251702]
[1659296525749,0.47038176,23915.0,23914.0,0.00251702]
[1659296526012,0.24759876,23915.0,23914.0,0.00251702]
[1659296526238,0.54838176,23915.0,23914.0,0.00251702]
[1659296526466,0.24759876,23915.0,23914.0,0.00251702]
[1659296527380,0.16959876,23915.0,23914.0,0.00251702]
[1659296527826,0.47038176,23915.0,23914.0,0.00251702]
[1659296528065,0.54838176,23915.0,23914.0,0.00251702]
[1659296528293,0.24759876,23915.0,23914.0,0.00251702]
[1659296530516,0.54838176,23915.0,23914.0,0.00251702]
[1659296531248,0.16959876,23915.0,23914.0,0.00251702]
[1659296531698,0.47038176,23915.0,23914.0,0.00251702]
[1659296531888,0.24859876,23915.0,23914.0,0.00251702]
[1659296532424,0.54938176,23915.0,23914.0,0.00251702]
[1659296532868,0.24859876,23915.0,23914.0,0.00251702]
[1659296533116,0.54938176,23915.0,23914.0,0.00251702]
[1659296533337,0.47038176,23915.0,23914.0,0.00251702]
[1659296534021,0.54938176,23915.0,23914.0,0.00251702]
[1659296535629,0.47038176,23915.0,23914.0,0.00251702]
[1659296536072,0.54938176,23915.0,23914.0,0.00251702]
[1659296536525,0.95663909,23915.0,23914.0,0.00251702]
[1659296537235,0.87763909,23915.0,23914.0,0.00251702]
[1659296537948,0.95663909,23915.0,23914.0,0.00251702]
[1659296538395,0.54938176,23915.0,23914.0,0.00251702]
[1659296539272,0.450783,23915.0,23914.0,0.00251702]
[1659296539965,0.529783,23915.0,23914.0,0.00251702]
[1659296541354,0.450783,23915.0,23914.0,0.00251702]
[1659296541568,0.47038176,23915.0,23914.0,0.00251702]
[1659296541782,0.16959876,23915.0,23914.0,0.00251702]
[1659296542026,0.54938176,23915.0,23914.0,0.00251702]
[1659296543436,0.47038176,23915.0,23914.0,0.00251702]
[1659296544118,0.54938176,23915.0,23914.0,0.00251702]
[1659296545260,0.53358176,23915.0,23914.0,0.00239802]
[1659296545925,0.66258176,23915.0,23914.0,0.00239802]
[1659296546814,1.06983909,23915.0,23914.0,0.00239802]
[1659296547252,0.99083909,23915.0,23914.0,0.00239802]
[1659296547920,1.06983909,23915.0,23914.0,0.00239802]
[1659296548139,1.41983909,23915.0,23907.0,0.052334]
[1659296548408,0.300783,23911.0,23907.0,0.44913733]
[1659296548633,0.300783,23910.0,23907.0,0.40725733]
[1659296548844,0.6475757,23911.0,23907.0,0.40725733]
[1659296549512,0.1,23909.0,23908.0,0.00085923]
[1659296549748,0.05,23909.0,23908.0,0.00085923]
[1659296550194,0.400783,23909.0,23908.0,0.00085923]
[1659296550412,0.400783,23909.0,23908.0,0.00084083]
[1659296550413,0.1,23909.0,23908.0,0.00084083]
[1659296551551,0.25914099,23910.0,23908.0,0.00167758]
[1659296551981,0.041,23909.0,23908.0,0.00167758]
[1659296552226,0.06059876,23909.0,23908.0,0.00167758]
[1659296552454,0.06059876,23909.0,23906.0,0.010456]
[1659296552455,0.51059876,23909.0,23906.0,0.010456]
[1659296553373,0.01959876,23909.0,23908.0,0.0017032]
[1659296554277,0.09459876,23909.0,23908.0,0.0017032]
[1659296555640,0.01959876,23909.0,23908.0,0.0017032]
[1659296555866,0.32038176,23909.0,23908.0,0.0017032]
[1659296556163,0.09459876,23909.0,23908.0,0.0017032]
[1659296556378,0.39538176,23909.0,23908.0,0.00255716]
[1659296557512,0.32038176,23909.0,23908.0,0.00255716]
[1659296557734,0.37038176,23909.0,23908.0,0.00255716]
[1659296557975,0.44438176,23909.0,23908.0,0.00255716]
[1659296558650,0.44438176,23909.0,23908.0,0.00255678]
[1659296558887,0.39438176,23909.0,23908.0,0.00255678]
[1659296559335,0.32038176,23909.0,23908.0,0.00255678]
[1659296560003,0.36338176,23909.0,23908.0,0.00255678]
[1659296561336,0.32038176,23909.0,23908.0,0.00255678]
[1659296561789,0.37038176,23909.0,23908.0,0.00255678]
[1659296562011,0.4357351,23909.0,23908.0,0.00255678]
[1659296562235,0.45,23908.0,23904.0,0.00853759]
[1659296562529,0.34692406,23909.0,23904.0,0.41579492]
[1659296562739,0.1,23908.0,23904.0,0.41579492]
[1659296562983,0.1,23908.0,23904.0,0.41572611]
[1659296563206,0.15,23908.0,23904.0,0.41572611]
[1659296563419,0.15,23908.0,23904.0,0.4157952]
[1659296563678,0.15,23908.0,23904.0,0.41665458]
[1659296563897,0.196,23908.0,23905.0,0.010457]
[1659296564129,0.300783,23907.0,23905.0,0.010457]
[1659296564866,0.300578,23908.0,23904.0,0.00092431]
[1659296564867,0.400783,23906.0,23904.0,0.00092431]
[1659296565101,0.1,23905.0,23904.0,0.00092431]
[1659296565319,0.400783,23905.0,23904.0,0.00092431]
[1659296565785,0.400783,23905.0,23904.0,0.00085938]
[1659296566005,0.742783,23905.0,23902.0,0.001]
[1659296566268,0.95,23903.0,23902.0,0.001]
[1659296566497,1.300783,23903.0,23902.0,0.001]
[1659296566740,1.09,23899.0,23897.0,0.0021]
[1659296566984,1.803383,23899.0,23897.0,0.0021]
[1659296567203,2.47017514,23899.0,23897.0,0.0021]
[1659296567670,2.77017514,23899.0,23897.0,0.0021]
[1659296567894,2.8687739,23899.0,23897.0,0.0021]
[1659296568125,2.8687739,23899.0,23897.0,0.00107412]
[1659296568126,2.9187739,23899.0,23897.0,0.00107412]
[1659296568324,0.09,23893.0,23888.0,0.03143]
[1659296568597,0.14,23893.0,23889.0,0.40725733]
[1659296569079,0.01959876,23892.0,23889.0,0.40725733]
[1659296569980,0.06859876,23892.0,23889.0,0.40725733]
[1659296570875,0.05141836,23892.0,23891.0,0.05]
[1659296571091,0.05141836,23892.0,23891.0,0.45725733]
[1659296571383,0.00241836,23892.0,23891.0,0.45725733]
[1659296571575,0.00241836,23892.0,23891.0,0.41990081]
[1659296571803,0.00241836,23892.0,23891.0,0.40725733]
[1659296572016,0.02641836,23892.0,23891.0,0.40725733]
[1659296572477,1.090783,23891.0,23890.0,8.261e-05]
[1659296572727,0.79,23891.0,23890.0,8.261e-05]
[1659296573222,0.09,23891.0,23890.0,0.40725733]
[1659296573451,0.02641836,23892.0,23891.0,0.05]
[1659296573452,0.00241836,23892.0,23891.0,0.05]
[1659296573694,0.00241836,23892.0,23891.0,0.45725733]
[1659296573915,0.02201712,23892.0,23891.0,0.45725733]
[1659296574136,0.00241836,23892.0,23891.0,0.45725733]
[1659296574575,0.855,23898.0,23891.0,0.45725733]
[1659296574807,0.350783,23897.0,23892.0,0.40725733]
[1659296575509,0.300783,23896.0,23893.0,7.172e-05]
[1659296575733,0.8,23894.0,23893.0,7.172e-05]
[1659296576010,1.150783,23894.0,23893.0,7.172e-05]
[1659296576194,0.85,23894.0,23893.0,7.172e-05]
[1659296576415,0.85,23894.0,23890.0,0.00090824]
[1659296576416,1.150783,23894.0,23890.0,0.00090824]
[1659296576645,0.05,23894.0,23890.0,0.40725733]
[1659296576861,0.64761916,23892.0,23891.0,0.45375174]
[1659296577099,0.64761916,23892.0,23891.0,0.43875174]
[1659296577342,0.64761916,23892.0,23891.0,0.40733174]
[1659296577560,0.64761916,23892.0,23891.0,0.41779374]
[1659296577843,0.64761916,23892.0,23891.0,0.46048334]
[1659296578055,0.64761916,23892.0,23891.0,0.46055775]
[1659296578277,0.64761916,23892.0,23891.0,0.40814134]
[1659296578742,0.64761916,23892.0,23891.0,0.40902279]
[1659296579183,0.68221792,23892.0,23891.0,0.40902279]
[1659296579629,0.64761916,23892.0,23891.0,0.40902279]
[1659296580369,0.64761916,23892.0,23891.0,0.39902279]
[1659296580607,0.69761916,23892.0,23891.0,0.39902279]
[1659296580814,0.69761916,23892.0,23891.0,0.39990436]
[1659296581262,0.69761916,23892.0,23891.0,0.40005083]
[1659296581766,0.64761916,23892.0,23891.0,0.40089591]
[1659296582197,0.64761916,23892.0,23891.0,0.40082385]
[1659296583118,0.64761916,23892.0,23891.0,0.40074944]
[1659296584251,0.64761916,23892.0,23891.0,0.40082385]
[1659296584471,0.68221792,23892.0,23891.0,0.40074944]
[1659296584683,0.64761916,23892.0,23891.0,0.40074944]
[1659296585349,0.64761916,23892.0,23891.0,0.40082385]
[1659296585771,0.64761916,23892.0,23891.0,0.40074944]
[1659296586001,0.68221792,23892.0,23891.0,0.40074944]
[1659296586232,0.64761916,23892.0,23891.0,0.40074944]
[1659296587162,0.68221792,23892.0,23891.0,0.40074944]
[1659296587375,0.64761916,23892.0,23891.0,0.40074944]
[1659296588088,0.65561916,23892.0,23891.0,0.40074944]
[1659296589274,0.64761916,23892.0,23891.0,0.40074944]
[1659296590828,0.68221792,23892.0,23891.0,0.40074944]
[1659296591046,0.64761916,23892.0,23891.0,0.40082385]
[1659296591497,0.64761916,23892.0,23891.0,0.40074944]
[1659296592155,0.64761916,23892.0,23891.0,0.40082385]
[1659296592372,0.64761916,23892.0,23891.0,0.40074944]
[1659296593303,0.64761916,23892.0,23891.0,0.00172665]
[1659296593525,0.94840216,23892.0,23891.0,0.00172665]
[1659296593744,0.98300092,23892.0,23891.0,0.00172665]
[1659296593965,1.02000092,23892.0,23891.0,0.00172665]
[1659296595388,0.68221792,23892.0,23891.0,0.00172665]
[1659296596067,0.71921792,23892.0,23891.0,0.00172665]
[1659296596286,0.68461916,23892.0,23891.0,0.00172665]
[1659296596739,0.68461916,23892.0,23891.0,0.00186375]
[1659296596993,0.68461916,23892.0,23891.0,0.00172665]
[1659296597639,0.64761916,23892.0,23891.0,0.00172665]
[1659296598091,0.66261916,23892.0,23891.0,0.00172665]
[1659296599305,0.64761916,23892.0,23891.0,0.00172665]
[1659296599978,0.71521792,23892.0,23891.0,0.00172665]
[1659296600451,0.71521792,23892.0,23890.0,0.00532765]
[1659296600663,0.76521792,23892.0,23890.0,0.00539158]
[1659296601073,0.76521792,23892.0,23891.0,0.00086243]
[1659296601289,0.73221792,23892.0,23891.0,0.00086243]
[1659296601982,0.76521792,23892.0,23891.0,0.00086243]
[1659296602222,1.47325825,23892.0,23891.0,0.00086243]
[1659296602436,0.76521792,23892.0,23891.0,0.00086243]
[1659296602924,1.06600092,23892.0,23891.0,0.00086243]
[1659296603133,1.06600092,23892.0,23885.0,0.0442132]
[1659296603134,0.6,23891.0,23885.0,0.04217563]
[1659296603354,1.06600092,23892.0,23884.0,0.6561]
[1659296603355,0.73221792,23892.0,23890.0,6.544e-05]
[1659296603632,0.09,23891.0,23890.0,6.544e-05]
[1659296603843,0.74,23891.0,23890.0,6.544e-05]
[1659296604070,0.789,23891.0,23890.0,6.544e-05]
[1659296604290,1.089783,23891.0,23886.0,0.40725733]
[1659296604506,0.789,23891.0,23886.0,0.40725733]
[1659296604737,0.789,23891.0,23889.0,6.569e-05]
[1659296605180,1.390783,23890.0,23889.0,5.69e-06]
[1659296605418,2.42947033,23890.0,23889.0,5.69e-06]
[1659296605660,2.42947033,23890.0,23881.0,0.0011]
[1659296605661,0.1,23888.0,23881.0,0.00030569]
[1659296605890,0.1,23888.0,23881.0,0.40756302]
[1659296605891,0.663983,23887.0,23881.0,0.40756302]
[1659296606134,0.300783,23886.0,23881.0,0.40756302]
[1659296606382,0.09,23882.0,23876.0,0.78607019]
[1659296606614,0.09,23882.0,23876.0,0.00059496]
[1659296606615,0.70725733,23881.0,23876.0,0.00059496]
[1659296606835,0.300783,23880.0,23876.0,0.00059496]
[1659296607065,0.79,23877.0,23876.0,0.00059496]
[1659296607288,0.54,23877.0,23876.0,0.00059496]
[1659296607611,0.05,23877.0,23876.0,0.00059496]
[1659296607840,0.0626,23881.0,23876.0,0.00059496]
[1659296608072,0.479,23877.0,23876.0,0.00059496]
[1659296608294,0.479,23877.0,23876.0,0.00144223]
[1659296609233,0.92548578,23877.0,23876.0,0.00144223]
[1659296609484,0.92548578,23877.0,23876.0,0.00227167]
[1659296609931,0.97848578,23877.0,23876.0,0.00227167]
[1659296610626,0.97848578,23877.0,23876.0,0.00059496]
[1659296611330,0.92548578,23877.0,23876.0,0.00059496]
[1659296612020,0.97948578,23877.0,23876.0,0.00059496]
[1659296612244,0.94731107,23877.0,23876.0,0.00146175]
[1659296612464,0.98190983,23877.0,23876.0,0.00146175]
[1659296613364,0.00242405,23877.0,23876.0,0.45212349]
[1659296613582,0.00242405,23877.0,23876.0,0.48356349]
[1659296613911,0.00242405,23877.0,23876.0,0.78356349]
[1659296614138,0.00242405,23877.0,23876.0,0.83356349]
[1659296614574,0.3,23886.0,23876.0,0.83356349]
[1659296614799,2.16116776,23887.0,23877.0,0.70725733]
[1659296615017,2.16116776,23887.0,23878.0,0.40725733]
[1659296615018,2.09376776,23887.0,23878.0,0.40725733]
[1659296615231,2.09376776,23887.0,23879.0,0.04188]
[1659296615473,2.09376776,23887.0,23880.0,0.45725733]
[1659296615694,2.09376776,23887.0,23881.0,0.40725733]
[1659296615921,1.70976776,23887.0,23881.0,0.40725733]
[1659296616131,1.77076776,23887.0,23882.0,6.489e-05]
[1659296616351,0.300783,23886.0,23882.0,6.489e-05]
[1659296616581,0.350783,23885.0,23882.0,6.489e-05]
[1659296616811,0.05,23885.0,23882.0,6.489e-05]
[1659296617020,1.77076776,23887.0,23882.0,6.489e-05]
[1659296617021,1.82076776,23887.0,23882.0,6.489e-05]
[1659296617258,0.300783,23886.0,23883.0,0.40725733]
[1659296617473,0.54756776,23887.0,23883.0,0.40733174]
[1659296617942,0.038,23886.0,23884.0,0.70725733]
[1659296618162,0.038,23886.0,23885.0,1.00725733]
[1659296618845,0.038,23886.0,23885.0,1.30725733]
[1659296619115,0.038,23886.0,23885.0,0.45725733]
[1659296619337,0.03702281,23887.0,23885.0,0.45725733]
[1659296619562,0.03702281,23887.0,23886.0,0.45725733]
[1659296619563,0.00242405,23887.0,23886.0,0.45725733]
[1659296620508,0.00242405,23887.0,23886.0,0.45818763]
[1659296622050,0.08242405,23887.0,23886.0,0.45818763]
[1659296622293,0.13242405,23887.0,23886.0,0.45818763]
[1659296623237,0.05242405,23887.0,23886.0,0.45818763]
[1659296623446,0.00242405,23887.0,23886.0,0.45818763]
[1659296624342,0.08242405,23887.0,23886.0,0.45818763]
[1659296624590,0.13242405,23887.0,23886.0,0.45818763]
[1659296625691,0.00242405,23887.0,23886.0,0.45818763]
[1659296625934,0.00242405,23887.0,23886.0,0.53718763]
[1659296626379,0.00242405,23887.0,23886.0,0.16722263]
[1659296627267,0.00242405,23887.0,23886.0,0.08917619]
[1659296627914,0.08242405,23887.0,23886.0,0.08917619]
[1659296628136,0.13242405,23887.0,23886.0,0.08917619]
[1659296629987,0.13242405,23887.0,23886.0,0.16817619]
[1659296630436,0.05242405,23887.0,23886.0,0.08917619]
[1659296630917,0.00242405,23887.0,23886.0,0.08917619]
[1659296632090,0.00242405,23887.0,23886.0,0.16817619]
[1659296632301,0.00242405,23887.0,23886.0,0.46817619]
[1659296633453,0.00242405,23887.0,23886.0,0.38917619]
[1659296633905,0.00242405,23887.0,23886.0,0.44417619]
[1659296634331,0.00242405,23887.0,23886.0,0.14417619]
[1659296634995,0.00242405,23887.0,23886.0,0.44417619]
[1659296635216,0.00242405,23887.0,23886.0,0.38917619]
[1659296636088,0.00242405,23887.0,23886.0,0.46817619]
[1659296637461,0.00242405,23887.0,23886.0,0.38917619]
[1659296638122,0.00242405,23887.0,23886.0,0.08917619]
[1659296638823,0.00242405,23887.0,23886.0,0.46817619]
[1659296639047,0.00242405,23887.0,23886.0,0.56005619]
[1659296639952,0.00242405,23887.0,23886.0,0.64005619]
[1659296640185,0.00242405,23887.0,23886.0,0.16917619]
[1659296640633,0.00242405,23887.0,23886.0,0.21105619]
[1659296641072,0.00242405,23887.0,23886.0,0.16917619]
[1659296641311,0.00242405,23887.0,23886.0,0.38917619]
[1659296641533,0.00242405,23887.0,23886.0,0.08917619]
[1659296641767,0.00242405,23887.0,23886.0,0.13105619]
[1659296641981,0.00242405,23887.0,23886.0,0.16505619]
[1659296642228,0.00242405,23887.0,23886.0,0.46505619]
[1659296643355,0.00242405,23887.0,23886.0,0.48105619]
[1659296644038,0.00242405,23887.0,23886.0,0.56105619]
[1659296644967,0.00242405,23887.0,23886.0,0.51917619]
[1659296645206,0.00242405,23887.0,23886.0,0.43917619]
[1659296645900,0.00242405,23887.0,23886.0,0.56105619]
[1659296647332,0.00242405,23887.0,23886.0,0.48105619]
[1659296648009,0.00242405,23887.0,23886.0,0.56105619]
[1659296650794,0.00235008,23887.0,23886.0,0.34105619]
[1659296651032,0.00235008,23887.0,23886.0,0.64105619]
[1659296651927,0.00235008,23887.0,23886.0,0.71805619]
[1659296652134,0.00235008,23887.0,23886.0,0.55805619]
[1659296653333,0.00235008,23887.0,23886.0,0.43917619]
[1659296654031,0.00235008,23887.0,23886.0,0.51617619]
[1659296654252,0.00235008,23887.0,23886.0,0.55805619]
[1659296655253,0.00235008,23887.0,23886.0,0.48105619]
[1659296656169,0.00217008,23887.0,23886.0,0.43917619]
[1659296656386,0.00217008,23887.0,23886.0,0.55805619]
[1659296657774,0.00217008,23887.0,23886.0,0.48105619]
[1659296658002,0.00217008,23887.0,23886.0,0.43105619]
[1659296658707,0.00217008,23887.0,23886.0,0.38917619]
[1659296659125,0.00217008,23887.0,23886.0,0.43105619]
[1659296659804,0.00217008,23887.0,23886.0,0.51105619]
[1659296661189,0.00217008,23887.0,23886.0,0.38917619]
[1659296661445,0.00217008,23887.0,23886.0,0.46917619]
[1659296661899,0.00217008,23887.0,23886.0,0.51105619]
[1659296662341,0.00217008,23887.0,23886.0,0.59105619]
[1659296663491,0.00217008,23887.0,23886.0,0.43105619]
[1659296663948,0.00217008,23887.0,23886.0,0.51105619]
[1659296665375,0.00217008,23887.0,23886.0,0.43105619]
[1659296666029,0.00217008,23887.0,23886.0,0.51105619]
[1659296667388,0.00217008,23887.0,23886.0,0.43105619]
[1659296668053,0.00217008,23887.0,23886.0,0.51105619]
[1659296669248,0.00217008,23887.0,23886.0,0.43105619]
[1659296669921,0.00217008,23887.0,23886.0,0.51105619]
[1659296671230,0.00217008,23887.0,23886.0,0.43105619]
[1659296671692,1.04360506,23890.0,23886.0,0.43105619]
[1659296671693,0.99360506,23890.0,23886.0,0.88105619]
[1659296671921,0.61831538,23892.0,23891.0,1.05]
[1659296672196,0.40947699,23892.0,23891.0,2.54053733]
[1659296672442,0.40947699,23892.0,23891.0,2.49053733]
[1659296672675,0.40947699,23892.0,23891.0,0.74913733]
[1659296672914,0.40947699,23892.0,23891.0,0.74921174]
[1659296673143,0.40947699,23892.0,23891.0,0.44921174]
[1659296674055,0.40947699,23892.0,23891.0,0.49921174]
[1659296674275,0.40947699,23892.0,23891.0,0.50020832]
[1659296674276,0.45947699,23892.0,23891.0,0.50020832]
[1659296674491,0.40947699,23892.0,23891.0,0.54353832]
[1659296674730,0.40947699,23892.0,23891.0,0.8561818]
[1659296675211,0.40947699,23892.0,23891.0,0.4628518]
[1659296675911,0.40947699,23892.0,23891.0,0.5418518]
[1659296676357,0.40947699,23892.0,23891.0,0.5544028]
[1659296676358,0.41154651,23892.0,23891.0,0.5544028]
[1659296676879,0.41154651,23892.0,23891.0,0.88510586]
[1659296677321,0.41154651,23892.0,23891.0,0.80610586]
[1659296677544,0.41154651,23892.0,23891.0,0.84943586]
[1659296677997,0.41154651,23892.0,23891.0,0.92843586]
[1659296679363,0.41154651,23892.0,23891.0,0.84943586]
[1659296680020,0.41154651,23892.0,23891.0,0.92943586]
[1659296681214,0.41154651,23892.0,23891.0,0.84943586]
[1659296681884,0.41154651,23892.0,23891.0,0.92943586]
[1659296683366,0.41154651,23892.0,23891.0,0.84943586]
[1659296683972,0.41154651,23892.0,23891.0,0.92943586]
[1659296685339,0.41154651,23892.0,23891.0,0.50603145]
[1659296685588,0.49614527,23892.0,23891.0,0.49338797]
[1659296685792,0.46154651,23892.0,23891.0,0.49338797]
[1659296685990,0.46154651,23892.0,23891.0,0.57238797]
[1659296686158,0.41154651,23892.0,23891.0,0.56969897]
[1659296686841,0.41154651,23892.0,23891.0,0.86969897]
[1659296687005,0.41154651,23892.0,23891.0,0.5716994]
[1659296687211,0.46154651,23892.0,23891.0,0.4926994]
[1659296687582,0.41154651,23892.0,23891.0,0.49277381]
[1659296688001,0.41154651,23892.0,23891.0,0.55377381]
[1659296688380,0.41154651,23892.0,23891.0,0.85377381]
[1659296689234,0.46154651,23892.0,23891.0,0.79277381]
[1659296689451,0.41154651,23892.0,23891.0,0.79277381]
[1659296689878,0.41154651,23892.0,23891.0,0.87177381]
[1659296691053,0.41154651,23892.0,23891.0,0.8716994]
[1659296691271,0.46154651,23892.0,23891.0,0.87177381]
[1659296691706,0.46154651,23892.0,23891.0,0.79277381]
[1659296692380,0.41154651,23892.0,23891.0,0.79277381]
[1659296692807,0.41154651,23892.0,23891.0,0.87177381]
[1659296694303,0.46154651,23892.0,23891.0,0.87177381]
[1659296694539,0.46154651,23892.0,23891.0,0.87961137]
[1659296694995,0.41154651,23892.0,23891.0,0.80061137]
[1659296695210,0.46154651,23892.0,23891.0,0.7926994]
[1659296695438,0.46154651,23892.0,23891.0,0.8716994]
[1659296695666,0.46154651,23892.0,23891.0,0.52844534]
[1659296695885,0.49614527,23892.0,23891.0,0.52844534]
[1659296696128,0.49614527,23892.0,23891.0,0.60744534]
[1659296696608,0.49614527,23892.0,23891.0,0.44944534]
[1659296696829,0.49614527,23892.0,23891.0,0.40756534]
[1659296697299,0.49614527,23892.0,23891.0,0.50756534]
[1659296697967,0.57514527,23892.0,23891.0,0.50756534]
[1659296699330,0.49614527,23892.0,23891.0,0.50756534]
[1659296699551,0.46154651,23892.0,23891.0,0.50756534]
[1659296700018,0.54054651,23892.0,23891.0,0.50756534]
[1659296700243,0.54054651,23892.0,23891.0,0.50763975]
[1659296700542,0.54054651,23892.0,23891.0,0.50756534]
[1659296701211,0.49054651,23892.0,23891.0,0.55806274]
[1659296701448,0.41154651,23892.0,23891.0,0.59994274]
[1659296701671,0.41154651,23892.0,23891.0,0.85797048]
[1659296701888,0.41154651,23892.0,23891.0,0.50747308]
[1659296701889,0.49054651,23892.0,23891.0,0.50747308]
[1659296702112,0.57195651,23892.0,23891.0,0.50747308]
[1659296702803,0.62195651,23892.0,23891.0,0.50747308]
[1659296703260,0.54295651,23892.0,23891.0,0.50747308]
[1659296703968,0.61995651,23892.0,23891.0,0.50747308]
[1659296705346,0.54295651,23892.0,23891.0,0.50747308]
[1659296706008,0.53854651,23892.0,23891.0,0.50747308]
[1659296707384,0.46154651,23892.0,23891.0,0.50747308]
[1659296708057,0.46154651,23892.0,23891.0,0.58347308]
[1659296709227,0.46154651,23892.0,23891.0,0.50747308]
[1659296709455,0.46659376,23892.0,23891.0,0.50747308]
[1659296709668,0.50119252,23892.0,23891.0,0.50647308]
[1659296709886,0.58119252,23892.0,23891.0,0.50647308]
[1659296710344,0.88197552,23892.0,23891.0,0.50647308]
[1659296710584,0.58119252,23892.0,23891.0,0.50647308]
[1659296710804,0.58119252,23892.0,23891.0,0.50736311]
[1659296711114,0.50119252,23892.0,23891.0,0.50736311]
[1659296711752,0.80197552,23892.0,23891.0,0.50736311]
[1659296711967,0.58119252,23892.0,23891.0,0.50736311]
[1659296712427,0.88197552,23892.0,23891.0,0.50736311]
[1659296713322,0.84737676,23892.0,23891.0,0.50736311]
[1659296713765,0.54659376,23892.0,23891.0,0.50736311]
[1659296714038,0.62659376,23892.0,23891.0,0.50736311]
[1659296714271,0.67659376,23892.0,23891.0,0.10100406]
[1659296714484,0.97737676,23892.0,23891.0,0.10188559]
[1659296715163,0.81737676,23892.0,23891.0,0.10188559]
[1659296715597,0.76737676,23892.0,23891.0,0.10188559]
[1659296715849,0.80637676,23892.0,23891.0,0.10188559]
[1659296716973,0.84097552,23892.0,23891.0,0.10188559]
[1659296717202,0.80197552,23892.0,23891.0,0.10188559]
[1659296717858,0.88197552,23892.0,23891.0,0.10188559]
[1659296719430,0.88197552,23892.0,23891.0,0.10100559]
[1659296719644,0.89197552,23892.0,23891.0,0.10100559]
[1659296719908,0.97197552,23892.0,23891.0,0.10187468]
[1659296720805,0.97405574,23892.0,23891.0,0.10187468]
[1659296721233,0.89405574,23892.0,23891.0,0.10187468]
[1659296721728,0.84405574,23892.0,23891.0,0.10187468]
[1659296721968,0.92405574,23892.0,23891.0,0.10187468]
[1659296722202,0.97405574,23892.0,23891.0,0.10187468]
[1659296722414,1.38131307,23892.0,23891.0,0.10187468]
[1659296722631,1.44451307,23892.0,23891.0,0.10187468]
[1659296723112,1.36451307,23892.0,23891.0,0.10187468]
[1659296723324,1.66451307,23892.0,23891.0,0.10187468]
[1659296723976,1.74451307,23892.0,23891.0,0.10187468]
[1659296724625,1.74451307,23892.0,23891.0,0.10101468]
[1659296724840,0.05,23889.0,23888.0,6.478e-05]
[1659296725057,1.76270433,23889.0,23888.0,6.478e-05]
[1659296725286,1.86270433,23889.0,23888.0,6.478e-05]
[1659296725743,0.14,23884.0,23879.0,0.03208453]
[1659296725956,0.19,23884.0,23880.0,0.40725733]
[1659296726406,0.300783,23883.0,23880.0,0.40725733]
[1659296726626,0.19,23884.0,23880.0,0.40725733]
[1659296726880,0.300783,23883.0,23879.0,0.44913733]
[1659296727113,0.00192371,23884.0,23879.0,0.44913733]
[1659296727350,0.350783,23883.0,23879.0,0.44913733]
[1659296727568,0.00192371,23884.0,23879.0,0.40725733]
[1659296727815,0.036,23883.0,23879.0,0.40725733]
[1659296728041,0.336783,23883.0,23880.0,0.00051579]
[1659296728255,0.076,23883.0,23881.0,0.40725733]
[1659296728460,0.05,23882.0,23881.0,0.40725733]
[1659296728681,0.076,23883.0,23881.0,0.44913733]
[1659296728898,0.076,23883.0,23882.0,0.40725733]
[1659296729113,0.376783,23883.0,23882.0,0.40725733]
[1659296729403,0.37538176,23883.0,23881.0,0.04188]
[1659296729600,0.07459876,23883.0,23881.0,0.04188]
[1659296729823,0.11159876,23883.0,23881.0,0.04188]
[1659296730469,0.11159876,23883.0,23881.0,0.04196262]
[1659296730936,0.11159876,23883.0,23881.0,8.262e-05]
[1659296731156,0.07459876,23883.0,23881.0,8.262e-05]
[1659296731446,0.07459876,23883.0,23880.0,0.00087574]
[1659296731820,0.74,23882.0,23881.0,7.297e-05]
[1659296731988,0.79,23882.0,23881.0,7.297e-05]
[1659296732194,0.19,23882.0,23881.0,7.297e-05]
[1659296732827,0.19,23882.0,23880.0,0.00087574]
[1659296733037,0.19,23882.0,23880.0,0.04275574]
[1659296733252,0.40129204,23882.0,23881.0,0.00086864]
[1659296733466,0.70207504,23882.0,23881.0,0.00086864]
[1659296733952,0.78207504,23882.0,23881.0,0.00086864]
[1659296735246,0.70207504,23882.0,23881.0,0.00173591]
[1659296735491,0.40129204,23882.0,23881.0,0.00173591]
[1659296735760,0.40129204,23882.0,23881.0,0.00789088]
[1659296735954,0.48129204,23882.0,23881.0,0.00173591]
[1659296736618,0.78207504,23882.0,23881.0,0.00173591]
[1659296736831,0.48129204,23882.0,23881.0,0.00173591]
[1659296737099,0.47936564,23882.0,23881.0,0.00202561]
[1659296737321,0.34936564,23882.0,23881.0,0.00202561]
[1659296738005,0.40036564,23882.0,23881.0,0.00202561]
[1659296738387,0.45036564,23882.0,23881.0,0.00202561]
[1659296739195,0.4339644,23882.0,23881.0,0.00231471]
[1659296739821,0.8147474,23882.0,23881.0,0.00231471]
[1659296740230,0.5139644,23882.0,23881.0,0.00231471]
[1659296740849,0.8147474,23882.0,23881.0,0.00231471]
[1659296741060,0.5139644,23882.0,23881.0,0.00231471]
[1659296741262,0.4339644,23882.0,23881.0,0.00231471]
[1659296741738,0.7347474,23882.0,23881.0,0.00231471]
[1659296741980,0.8147474,23882.0,23881.0,0.00231471]
[1659296742269,0.5139644,23882.0,23881.0,0.00231471]
[1659296742508,0.8147474,23882.0,23881.0,0.00231471]
[1659296742741,0.5139644,23882.0,23881.0,0.00231471]
[1659296743215,0.7347474,23882.0,23881.0,0.00231471]
[1659296744091,0.8147474,23882.0,23881.0,0.00231471]
[1659296744525,0.5139644,23882.0,23881.0,0.00231471]
[1659296744945,0.8147474,23882.0,23881.0,0.00231471]
[1659296745382,0.7347474,23882.0,23881.0,0.00231471]
[1659296746045,0.8147474,23882.0,23881.0,0.00231471]
[1659296746475,0.81464978,23882.0,23881.0,0.00231471]
[1659296747418,0.73464978,23882.0,23881.0,0.00231471]
[1659296748120,0.81464978,23882.0,23881.0,0.00231471]
[1659296749244,0.73464978,23882.0,23881.0,0.00231471]
[1659296749943,1.27090711,23882.0,23881.0,0.00231471]
[1659296750180,1.82270711,23882.0,23881.0,0.00231471]
[1659296750392,0.25688783,23879.0,23876.0,0.00059496]
[1659296751735,0.300783,23878.0,23876.0,0.00059496]
[1659296751952,0.29588783,23879.0,23876.0,0.00059496]
[1659296752174,0.29588783,23879.0,23876.0,0.00682563]
[1659296752851,0.29588783,23879.0,23876.0,0.00059496]
[1659296753322,0.25688783,23879.0,23876.0,0.00059496]
[1659296754054,0.30788783,23879.0,23876.0,0.00059496]